bitfinex/quotes_BTCUSD_20241215
["timestamp","ask_amount","ask_price","bid_price","bid_amount"]
[1734296120448,0.21646896,103100.0,103090.0,0.0227862]
[1734296120768,0.1295077,103100.0,103090.0,0.0288477]
[1734296120974,0.1065077,103100.0,103090.0,0.28101124]
[1734296121709,0.1065077,103100.0,103090.0,0.29070859]
[1734296122113,0.1295077,103100.0,103090.0,0.29070859]
[1734296124815,0.1295077,103100.0,103090.0,0.28101124]
[1734296126709,0.1295077,103100.0,103090.0,0.30212096]
[1734296128662,0.1065077,103100.0,103090.0,0.30212096]
[1734296129084,0.1065077,103100.0,103090.0,0.24396242]
[1734296129499,0.1065077,103100.0,103090.0,0.30212096]
[1734296132426,0.1065077,103100.0,103090.0,0.29605946]
[1734296132659,0.1065077,103100.0,103090.0,0.30212007]
[1734296133687,0.1065077,103100.0,103090.0,0.22126153]
[1734296133896,0.1295077,103100.0,103090.0,0.02119592]
[1734296141449,0.1295077,103100.0,103090.0,0.027257]
[1734296142403,0.1295077,103100.0,103090.0,0.02725698]
[1734296143253,0.4018937,103100.0,103090.0,0.02725698]
[1734296143485,0.4488937,103100.0,103090.0,0.02119592]
[1734296143898,0.4488937,103100.0,103090.0,8.62e-05]
[1734296148004,0.4688937,103100.0,103090.0,8.62e-05]
[1734296151331,0.52705224,103100.0,103090.0,8.62e-05]
[1734296151538,0.79399044,103100.0,103090.0,8.62e-05]
[1734296151869,0.967541,103100.0,103090.0,8.62e-05]
[1734296153272,0.90938246,103100.0,103090.0,8.62e-05]
[1734296155947,0.90952201,103100.0,103090.0,8.62e-05]
[1734296156509,0.96768055,103100.0,103090.0,8.62e-05]
[1734296156722,1.12646021,103100.0,103090.0,8.62e-05]
[1734296156907,1.03954538,103100.0,103090.0,8.62e-05]
[1734296159152,1.03979803,103100.0,103090.0,8.62e-05]
[1734296159368,1.098701,103100.0,103090.0,8.62e-05]
[1734296159781,1.09871847,103100.0,103090.0,8.62e-05]
[1734296160452,1.09871768,103100.0,103090.0,8.62e-05]
[1734296160884,1.09872132,103100.0,103090.0,8.62e-05]
[1734296161092,1.09872269,103100.0,103090.0,8.62e-05]
[1734296161320,1.04056415,103100.0,103090.0,8.62e-05]
[1734296161750,1.09872269,103100.0,103090.0,8.62e-05]
[1734296162164,1.09875108,103100.0,103090.0,8.62e-05]
[1734296162374,0.96832637,103100.0,103090.0,8.62e-05]
[1734296162631,1.09874653,103100.0,103090.0,8.62e-05]
[1734296163864,1.14874653,103100.0,103090.0,8.62e-05]
[1734296164073,1.07648491,103100.0,103090.0,8.62e-05]
[1734296164279,1.07644273,103100.0,103090.0,8.62e-05]
[1734296164483,0.9025853,103100.0,103090.0,8.62e-05]
[1734296164898,0.9460602,103100.0,103090.0,8.62e-05]
[1734296166149,0.8960602,103100.0,103090.0,8.62e-05]
[1734296166560,0.89589285,103100.0,103090.0,8.62e-05]
[1734296169253,1.02370302,103100.0,103090.0,8.62e-05]
[1734296171242,0.1,103090.0,103080.0,6.86e-05]
[1734296171419,1.1245324,103090.0,103080.0,6.86e-05]
[1734296171586,0.99428006,103090.0,103080.0,6.86e-05]
[1734296172194,0.99424839,103090.0,103080.0,6.86e-05]
[1734296172398,0.82061027,103090.0,103080.0,6.86e-05]
[1734296172616,0.99425782,103090.0,103080.0,6.86e-05]
[1734296173442,0.82061027,103090.0,103080.0,6.86e-05]
[1734296173850,1.06477412,103090.0,103080.0,6.86e-05]
[1734296174074,1.10836895,103090.0,103080.0,6.86e-05]
[1734296174299,1.06467199,103090.0,103080.0,6.86e-05]
[1734296174692,0.84768688,103090.0,103080.0,6.86e-05]
[1734296174896,1.0646883,103090.0,103080.0,6.86e-05]
[1734296175549,1.0146883,103090.0,103080.0,6.86e-05]
[1734296175758,1.05836895,103090.0,103080.0,6.86e-05]
[1734296175962,1.01465934,103090.0,103080.0,6.86e-05]
[1734296176168,1.05836895,103090.0,103080.0,6.86e-05]
[1734296177016,0.97236364,103090.0,103080.0,6e-07]
[1734296178527,0.99066649,103090.0,103080.0,6e-07]
[1734296179152,0.99022952,103090.0,103080.0,6e-07]
[1734296179770,0.99020388,103090.0,103080.0,6e-07]
[1734296180647,0.492024,103080.0,103070.0,8e-07]
[1734296180849,1.13118741,103080.0,103070.0,8e-07]
[1734296181509,1.13623395,103080.0,103070.0,8e-07]
[1734296181969,1.13623395,103080.0,103070.0,3.7e-07]
[1734296184085,1.2381856,103080.0,103070.0,3.7e-07]
[1734296184528,1.2381856,103080.0,103070.0,5.7e-07]
[1734296186858,1.25786438,103080.0,103070.0,5.7e-07]
[1734296188140,0.99779327,103080.0,103070.0,5.7e-07]
[1734296188367,1.25771355,103080.0,103070.0,5.7e-07]
[1734296189217,0.05,103050.0,103040.0,8.63e-05]
[1734296189431,0.79237139,103050.0,103040.0,0.00025019]
[1734296189637,0.70575654,103050.0,103040.0,0.00025019]
[1734296189850,0.79237139,103050.0,103040.0,0.00025019]
[1734296191319,0.05,103040.0,103020.0,8.62e-05]
[1734296191550,0.05,103040.0,103020.0,0.00063274]
[1734296191551,0.31617203,103030.0,103020.0,0.00063274]
[1734296191753,0.32271358,103030.0,103020.0,0.00063274]
[1734296192227,0.38087212,103030.0,103020.0,0.00063274]
[1734296193301,0.32271358,103030.0,103020.0,0.00063274]
[1734296193647,0.32271358,103030.0,103020.0,0.00313274]
[1734296194914,0.38087212,103030.0,103020.0,0.00313274]
[1734296195564,0.38087212,103030.0,103020.0,0.00063274]
[1734296195771,0.32271358,103030.0,103020.0,0.00063274]
[1734296195960,0.38087212,103030.0,103020.0,0.00063274]
[1734296196346,0.32271358,103030.0,103020.0,0.00063274]
[1734296197973,0.32271358,103030.0,103020.0,0.00313274]
[1734296200899,0.32271358,103030.0,103020.0,0.00063274]
[1734296202355,0.38087212,103030.0,103020.0,0.00063274]
[1734296209313,0.46067212,103030.0,103020.0,0.00063274]
[1734296211364,0.40251358,103030.0,103020.0,0.00063274]
[1734296212121,0.46067212,103030.0,103020.0,0.00063274]
[1734296215553,0.00654155,103030.0,103020.0,0.23149128]
[1734296215759,0.00654155,103030.0,103020.0,0.44603977]
[1734296216230,0.1942616,103050.0,103030.0,0.196613]
[1734296216468,0.09905403,103040.0,103030.0,0.20267831]
[1734296216671,0.09905403,103040.0,103030.0,0.20898075]
[1734296218663,0.09905403,103040.0,103030.0,0.20267831]
[1734296218843,0.09905403,103040.0,103030.0,0.196613]
[1734296219096,0.09905403,103040.0,103030.0,0.20267739]
[1734296219724,0.15265403,103040.0,103030.0,0.20267739]
[1734296219936,0.0334,103040.0,103030.0,0.79561432]
[1734296220154,0.0334,103040.0,103030.0,0.88259703]
[1734296220368,0.0334,103040.0,103030.0,1.73758425]
[1734296220625,0.0334,103040.0,103030.0,1.73757624]
[1734296221285,0.0334,103040.0,103030.0,1.73151185]
[1734296221467,0.0334,103040.0,103030.0,1.60710858]
[1734296221703,0.0334,103040.0,103030.0,1.73753082]
[1734296222357,0.0334,103040.0,103030.0,1.60699297]
[1734296223494,0.03800143,103040.0,103030.0,1.60699297]
[1734296224332,0.0334,103040.0,103030.0,1.42696475]
[1734296224534,0.0334,103040.0,103030.0,1.43302753]
[1734296224740,0.03800143,103040.0,103030.0,1.43302753]
[1734296225350,0.03800143,103040.0,103030.0,2.62102653]
[1734296225677,0.0334,103040.0,103030.0,2.62102653]
[1734296225901,0.0334,103040.0,103030.0,2.30000692]
[1734296226304,0.0334,103040.0,103030.0,0.56295065]
[1734296226495,0.0334,103040.0,103030.0,0.47603171]
[1734296226704,0.03800143,103040.0,103030.0,0.47603171]
[1734296227310,0.03800143,103040.0,103030.0,0.47603241]
[1734296229504,0.03800143,103040.0,103030.0,0.47483241]
[1734296230541,0.03800143,103040.0,103030.0,0.47483242]
[1734296230841,0.03800143,103040.0,103030.0,0.47491872]
[1734296231049,0.03817403,103040.0,103030.0,0.47491872]
[1734296232139,0.03817403,103040.0,103030.0,0.47361872]
[1734296232381,0.03817403,103040.0,103030.0,0.28901066]
[1734296232579,0.03817403,103040.0,103030.0,2.03584904]
[1734296232797,0.03817403,103040.0,103030.0,2.22495094]
[1734296233005,0.0335726,103040.0,103030.0,2.31174837]
[1734296233207,0.0335726,103040.0,103030.0,2.8120865]
[1734296233360,0.0335726,103040.0,103030.0,2.87333863]
[1734296233566,0.0001726,103050.0,103040.0,0.41044598]
[1734296233771,0.0001726,103050.0,103040.0,4.81390737]
[1734296234539,0.0001726,103050.0,103040.0,4.68783437]
[1734296234745,0.0001726,103050.0,103040.0,3.78016837]
[1734296235369,0.0001726,103050.0,103040.0,3.69192437]
[1734296237158,0.0001726,103050.0,103040.0,3.68586211]
[1734296237366,0.0001726,103050.0,103040.0,3.69192437]
[1734296239009,0.0001726,103050.0,103040.0,2.82591937]
[1734296240077,0.0001726,103050.0,103040.0,2.82591936]
[1734296240276,0.0001726,103050.0,103040.0,2.79663376]
[1734296241361,0.0001726,103050.0,103040.0,2.88538163]
[1734296241560,0.0001726,103050.0,103040.0,2.98443566]
[1734296241880,0.0001726,103050.0,103040.0,3.03443566]
[1734296243029,0.0001726,103050.0,103040.0,3.05086216]
[1734296243255,0.1209,103080.0,103070.0,0.344042]
[1734296243427,0.1209,103080.0,103070.0,0.43885167]
[1734296243630,0.1256306,103080.0,103070.0,0.43885167]
[1734296244611,0.12579437,103080.0,103070.0,0.43885167]
[1734296246386,0.12579437,103080.0,103070.0,0.43885157]
[1734296248341,0.12579437,103080.0,103070.0,0.45584698]
[1734296249489,0.12579437,103080.0,103070.0,0.44978528]
[1734296249699,0.12579437,103080.0,103070.0,0.45584698]
[1734296249913,0.12579437,103080.0,103070.0,0.47552395]
[1734296252125,0.12579437,103080.0,103070.0,0.44495359]
[1734296255419,0.12579437,103080.0,103070.0,0.4449536]
[1734296255972,0.12596697,103080.0,103070.0,0.4449536]
[1734296259187,0.12596697,103080.0,103070.0,0.44495372]
[1734296263787,0.12596697,103080.0,103070.0,0.4613949]
[1734296264585,0.12596697,103080.0,103070.0,0.47109379]
[1734296266622,0.12596697,103080.0,103070.0,0.4613949]
[1734296267961,0.12596697,103080.0,103070.0,0.45533307]
[1734296268165,0.12596697,103080.0,103070.0,0.4613948]
[1734296269517,0.12596697,103080.0,103070.0,0.47109358]
[1734296274079,0.12596697,103080.0,103070.0,0.45533307]
[1734296274262,0.12596697,103080.0,103070.0,0.47109358]
[1734296276355,0.12596697,103080.0,103070.0,0.55812042]
[1734296277185,0.12596697,103080.0,103070.0,0.55812036]
[1734296278436,0.12596697,103080.0,103070.0,1.18453883]
[1734296280524,0.12596697,103080.0,103070.0,1.17484009]
[1734296281489,0.12596697,103080.0,103070.0,1.18453873]
[1734296282267,0.00506697,103080.0,103070.0,1.53980856]
[1734296282473,0.00506697,103080.0,103070.0,1.8508891]
[1734296282730,0.00033637,103080.0,103070.0,1.63332198]
[1734296282994,0.00033637,103080.0,103070.0,2.0831379]
[1734296284152,0.00033637,103080.0,103070.0,2.01882372]
[1734296284359,0.00033637,103080.0,103070.0,2.0831379]
[1734296285527,0.00033637,103080.0,103070.0,2.61899367]
[1734296285764,0.00033637,103080.0,103070.0,2.35791313]
[1734296285963,0.0001724,103090.0,103080.0,0.15451797]
[1734296286166,0.0001724,103090.0,103080.0,4.52949894]
[1734296286369,0.0001724,103090.0,103080.0,4.67746891]
[1734296286570,0.0001724,103090.0,103080.0,4.87149291]
[1734296286974,0.0001724,103090.0,103080.0,4.73383691]
[1734296287697,0.00017225,103090.0,103080.0,4.43367915]
[1734296288315,0.00017225,103090.0,103080.0,4.69505721]
[1734296288514,0.00017225,103090.0,103080.0,3.94314253]
[1734296289315,0.00017225,103090.0,103080.0,4.11724916]
[1734296289714,0.00017225,103090.0,103080.0,4.11664001]
[1734296290607,0.00017225,103090.0,103080.0,3.88980201]
[1734296290787,0.00017225,103090.0,103080.0,3.67653401]
[1734296291146,0.00656713,103090.0,103080.0,3.67653401]
[1734296291352,0.00017225,103090.0,103080.0,3.67653401]
[1734296292513,0.00017225,103090.0,103080.0,3.80705466]
[1734296292916,0.00017225,103090.0,103080.0,3.67653401]
[1734296293344,0.00017225,103090.0,103080.0,3.80705466]
[1734296293742,0.07967225,103090.0,103080.0,3.80705466]
[1734296294250,0.07967225,103090.0,103080.0,3.79129801]
[1734296294457,0.07967225,103090.0,103080.0,3.80705461]
[1734296296134,0.08606713,103090.0,103080.0,3.80705461]
[1734296297494,0.08606713,103090.0,103080.0,3.80705456]
[1734296298323,0.08606713,103090.0,103080.0,3.89402223]
[1734296298513,0.08606713,103090.0,103080.0,3.80705456]
[1734296298985,0.08589634,103090.0,103080.0,3.80705456]
[1734296299370,0.08589634,103090.0,103080.0,3.89401753]
[1734296300445,0.08589634,103090.0,103080.0,3.79129801]
[1734296300654,0.08589634,103090.0,103080.0,3.80705445]
[1734296300860,0.08589634,103090.0,103080.0,3.79735818]
[1734296301072,0.08589634,103090.0,103080.0,3.88431673]
[1734296301250,0.18589634,103090.0,103080.0,3.79735818]
[1734296301455,0.18589634,103090.0,103080.0,3.88431281]
[1734296302149,0.18589634,103090.0,103080.0,3.88439901]
[1734296303366,0.18589634,103090.0,103080.0,3.79744438]
[1734296303573,0.18589634,103090.0,103080.0,3.88439467]
[1734296303781,0.18589634,103090.0,103080.0,3.79744436]
[1734296306212,0.18589634,103090.0,103080.0,3.68108934]
[1734296306416,0.18589634,103090.0,103080.0,3.79744436]
[1734296306619,0.18589634,103090.0,103080.0,3.88439369]
[1734296308689,0.18589634,103090.0,103080.0,3.8835165]
[1734296309719,0.18589634,103090.0,103080.0,3.79656051]
[1734296310684,0.18589634,103090.0,103080.0,3.88352476]
[1734296311379,0.18589634,103090.0,103080.0,3.88353083]
[1734296312288,0.18589634,103090.0,103080.0,3.79656051]
[1734296312695,0.08589634,103090.0,103080.0,3.79656051]
[1734296314022,0.08589634,103090.0,103080.0,3.79943986]
[1734296316711,0.08589634,103090.0,103080.0,3.79989959]
[1734296317246,0.08589634,103090.0,103080.0,3.66939445]
[1734296318200,0.08583941,103090.0,103080.0,3.79991388]
[1734296318378,0.08583941,103090.0,103080.0,3.66939445]
[1734296318752,0.08583941,103090.0,103080.0,3.66955794]
[1734296318955,0.08583941,103090.0,103080.0,3.66349779]
[1734296319389,0.08583941,103090.0,103080.0,3.66955803]
[1734296320454,0.08583941,103090.0,103080.0,3.66667868]
[1734296321393,0.08583941,103090.0,103080.0,2.95383476]
[1734296321608,0.07944453,103090.0,103080.0,3.49286451]
[1734296321815,0.08583181,103090.0,103080.0,3.49286451]
[1734296322422,0.08583181,103090.0,103080.0,4.20407512]
[1734296322643,0.08583181,103090.0,103080.0,4.20407508]
[1734296323471,0.08583181,103090.0,103080.0,4.20417198]
[1734296324532,0.08583181,103090.0,103080.0,3.98642269]
[1734296325285,0.08600421,103090.0,103080.0,3.98642269]
[1734296326008,0.08600421,103090.0,103080.0,2.95383472]
[1734296326217,0.07961693,103090.0,103080.0,3.98739897]
[1734296326643,0.08600421,103090.0,103080.0,3.98739897]
[1734296328347,0.08600421,103090.0,103080.0,3.98739899]
[1734296329029,0.08600421,103090.0,103080.0,3.99028181]
[1734296329900,0.08600421,103090.0,103080.0,4.37633644]
[1734296330116,0.13510421,103090.0,103080.0,3.87984381]
[1734296330941,0.13510421,103090.0,103080.0,4.14954342]
[1734296331151,0.13510421,103090.0,103080.0,3.88040581]
[1734296331358,0.13510421,103090.0,103080.0,4.26357762]
[1734296332651,0.13510421,103090.0,103080.0,4.26357766]
[1734296333990,0.13510421,103090.0,103080.0,4.26645379]
[1734296335303,0.13510421,103090.0,103080.0,4.26039353]
[1734296335513,0.13510421,103090.0,103080.0,4.26810511]
[1734296336449,0.13510421,103090.0,103080.0,3.88160142]
[1734296336652,0.13510421,103090.0,103080.0,4.26810511]
[1734296337512,0.13510421,103090.0,103080.0,1.90079811]
[1734296337721,0.13510421,103090.0,103080.0,4.83214413]
[1734296337961,0.13510421,103090.0,103080.0,5.28306511]
[1734296338165,0.13510421,103090.0,103080.0,5.15799411]
[1734296338365,0.13510421,103090.0,103080.0,5.10758311]
[1734296340602,0.13297512,103090.0,103080.0,5.10758311]
[1734296340805,0.13510713,103090.0,103080.0,5.10758311]
[1734296341696,0.13510713,103090.0,103080.0,5.07268511]
[1734296341898,0.13510713,103090.0,103080.0,5.04844911]
[1734296343608,0.13510713,103090.0,103080.0,5.04842444]
[1734296347009,0.13297707,103090.0,103080.0,5.04842444]
[1734296347980,0.13297707,103090.0,103080.0,5.09842444]
[1734296348186,0.13297707,103090.0,103080.0,4.83665369]
[1734296348388,0.13297707,103090.0,103080.0,5.09840461]
[1734296352161,0.13297707,103090.0,103080.0,4.83665369]
[1734296352997,0.13297707,103090.0,103080.0,4.83670554]
[1734296353779,0.13297707,103090.0,103080.0,4.83617718]
[1734296354524,0.13297707,103090.0,103080.0,5.09793993]
[1734296354733,0.13297707,103090.0,103080.0,4.98158491]
[1734296354940,0.13297707,103090.0,103080.0,5.09793993]
[1734296356628,0.13297707,103090.0,103080.0,5.09187966]
[1734296356842,0.13297707,103090.0,103080.0,4.95059389]
[1734296358939,0.13297707,103090.0,103080.0,4.87207189]
[1734296359345,0.13297707,103090.0,103080.0,4.75571687]
[1734296359546,0.13297707,103090.0,103080.0,4.87207189]
[1734296361564,0.13297707,103090.0,103080.0,4.48556302]
[1734296363908,0.13297707,103090.0,103080.0,4.51724837]
[1734296364861,0.13297707,103090.0,103080.0,4.90375724]
[1734296365442,0.13297707,103090.0,103080.0,4.90088111]
[1734296365647,0.13297707,103090.0,103080.0,4.89184517]
[1734296365872,0.13297707,103090.0,103080.0,4.90417383]
[1734296366033,0.13297707,103090.0,103080.0,4.28431333]
[1734296366671,0.2320311,103090.0,103080.0,1.04148896]
[1734296366886,0.4260361,103090.0,103080.0,0.72148801]
[1734296367118,0.4260361,103090.0,103080.0,0.09397892]
[1734296367119,0.51321942,103090.0,103080.0,0.09397892]
[1734296367255,0.4260361,103090.0,103080.0,0.00670846]
[1734296368470,0.4260361,103090.0,103080.0,0.15670846]
[1734296370276,0.4260361,103090.0,103080.0,0.1506482]
[1734296370478,0.4260361,103090.0,103080.0,0.20882571]
[1734296370797,0.4260361,103090.0,103080.0,0.2148876]
[1734296370972,0.4260361,103090.0,103080.0,0.15671009]
[1734296371177,0.4260361,103090.0,103080.0,0.1506482]
[1734296371871,0.4260361,103090.0,103080.0,0.15671008]
[1734296372955,0.4260361,103090.0,103080.0,0.15670989]
[1734296374341,0.4260361,103090.0,103080.0,0.1506482]
[1734296380196,0.2320311,103090.0,103080.0,0.40284971]
[1734296380395,0.2320311,103090.0,103080.0,0.40891133]
[1734296380812,0.2320311,103090.0,103080.0,0.35073382]
[1734296388351,0.2320311,103090.0,103080.0,0.35073344]
[1734296391146,0.4260361,103090.0,103080.0,0.35073344]
[1734296391360,0.4260361,103090.0,103080.0,0.3446722]
[1734296391571,0.4260361,103090.0,103080.0,0.35073355]
[1734296391781,0.4260361,103090.0,103080.0,0.3446722]
[1734296391989,0.4260361,103090.0,103080.0,0.35073357]
[1734296398315,0.4260361,103090.0,103080.0,0.15670957]
[1734296400728,0.4260361,103090.0,103080.0,0.15670964]
[1734296402782,0.4260361,103090.0,103080.0,0.0006482]
[1734296403030,0.4260361,103090.0,103080.0,0.00671016]
[1734296405932,0.4260361,103090.0,103080.0,0.0067102]
[1734296407197,0.4260361,103090.0,103070.0,0.12753654]
[1734296407198,0.319024,103080.0,103070.0,0.12753654]
[1734296408266,0.319024,103080.0,103070.0,0.18571405]
[1734296408896,0.319024,103080.0,103070.0,0.20478729]
[1734296409107,0.319024,103080.0,103070.0,0.14660978]
[1734296410620,0.41807803,103080.0,103070.0,0.14074117]
[1734296410853,0.41807803,103080.0,103070.0,0.01320463]
[1734296411235,0.316442,103070.0,103060.0,0.23713923]
[1734296411788,0.316442,103070.0,103060.0,0.15]
[1734296412238,0.1224,103070.0,103060.0,0.40223851]
[1734296412459,0.1224,103070.0,103060.0,0.48937774]
[1734296412671,0.1224,103070.0,103060.0,0.56724543]
[1734296412886,0.1224,103070.0,103060.0,0.50906792]
[1734296413127,0.1224,103070.0,103060.0,0.63977677]
[1734296413646,0.1224,103070.0,103060.0,0.50906792]
[1734296414061,0.1224,103070.0,103060.0,0.5222459]
[1734296414282,0.1224,103070.0,103060.0,0.58042341]
[1734296414491,0.1224,103070.0,103060.0,0.77141741]
[1734296414702,0.1224,103070.0,103060.0,1.22386562]
[1734296415099,0.1224,103070.0,103060.0,1.16568811]
[1734296415587,0.1224,103070.0,103060.0,0.84394875]
[1734296415992,0.1224,103070.0,103060.0,1.16568024]
[1734296416280,0.1224,103070.0,103060.0,1.16576644]
[1734296416901,0.1224,103070.0,103060.0,0.84403495]
[1734296417107,0.1224,103070.0,103060.0,1.34003539]
[1734296417516,0.1224,103070.0,103060.0,1.10757941]
[1734296417720,0.12713239,103070.0,103060.0,1.34003539]
[1734296418786,0.12713239,103070.0,103060.0,1.16575692]
[1734296419203,0.12713239,103070.0,103060.0,1.17181916]
[1734296419613,0.12713239,103070.0,103060.0,0.92264765]
[1734296419823,0.12713239,103070.0,103060.0,0.47021683]
[1734296420024,0.12713239,103070.0,103060.0,0.60092568]
[1734296420232,0.12713239,103070.0,103060.0,0.46415459]
[1734296420669,0.12713239,103070.0,103060.0,0.50264192]
[1734296421291,0.12713239,103070.0,103060.0,0.35732518]
[1734296421509,0.12713239,103070.0,103060.0,0.44446441]
[1734296422472,0.12713239,103070.0,103060.0,0.69152828]
[1734296422664,0.12713239,103070.0,103060.0,3.506018]
[1734296422665,0.08213239,103070.0,103060.0,3.506018]
[1734296422869,0.08213239,103070.0,103060.0,2.77558347]
[1734296423501,0.08213239,103070.0,103060.0,2.93525404]
[1734296423708,0.08213239,103070.0,103060.0,2.99341674]
[1734296423991,0.08213239,103070.0,103060.0,2.99330452]
[1734296424450,0.08213239,103070.0,103060.0,2.99936651]
[1734296425055,0.08213239,103070.0,103060.0,2.78155543]
[1734296425264,0.00473239,103070.0,103060.0,2.99936651]
[1734296425470,0.00473239,103070.0,103060.0,3.05882212]
[1734296425693,0.00473239,103070.0,103060.0,3.15238434]
[1734296426323,0.00473239,103070.0,103060.0,3.21056185]
[1734296427152,0.00473239,103070.0,103060.0,3.20449986]
[1734296427367,0.00473239,103070.0,103060.0,3.30355389]
[1734296428006,5.459e-05,103080.0,103060.0,3.69166089]
[1734296428250,5.459e-05,103080.0,103070.0,4.91242009]
[1734296428496,5.459e-05,103080.0,103070.0,5.45626721]
[1734296428765,5.459e-05,103080.0,103070.0,5.21291421]
[1734296429014,5.459e-05,103080.0,103070.0,5.21279303]
[1734296430348,5.459e-05,103080.0,103070.0,4.58649603]
[1734296430734,5.459e-05,103080.0,103070.0,4.36832701]
[1734296430888,5.459e-05,103080.0,103070.0,4.48468203]
[1734296431293,5.459e-05,103080.0,103070.0,4.36832701]
[1734296431508,5.459e-05,103080.0,103070.0,4.48468203]
[1734296431940,0.10005459,103080.0,103070.0,4.48468203]
[1734296432135,0.10005459,103080.0,103070.0,4.13465503]
[1734296432698,0.18175459,103080.0,103070.0,4.13465503]
[1734296433300,0.18175459,103080.0,103070.0,4.12398803]
[1734296433918,0.10005459,103080.0,103070.0,4.12398803]
[1734296434328,0.10005459,103080.0,103070.0,4.14367389]
[1734296435415,0.10005459,103080.0,103070.0,4.29272792]
[1734296435669,0.10005459,103080.0,103070.0,4.699187]
[1734296435893,5.459e-05,103080.0,103070.0,4.4827344]
[1734296436523,0.00481478,103080.0,103070.0,4.4827344]
[1734296436951,0.00481478,103080.0,103070.0,4.54091191]
[1734296437163,0.0001724,103090.0,103080.0,0.37453253]
[1734296437371,0.0001724,103090.0,103080.0,4.68460606]
[1734296437584,0.0001724,103090.0,103080.0,5.03554276]
[1734296438248,0.0001724,103090.0,103080.0,5.16606061]
[1734296440332,0.0001724,103090.0,103080.0,5.25304235]
[1734296442835,0.0001724,103090.0,103080.0,5.22423812]
[1734296443047,0.0001724,103090.0,103080.0,5.1927743]
[1734296443257,0.0001724,103090.0,103080.0,5.51295967]
[1734296444318,0.0001724,103090.0,103080.0,5.4690306]
[1734296444849,0.0001724,103090.0,103080.0,5.48228426]
[1734296445210,0.0001724,103090.0,103080.0,5.03292703]
[1734296446151,0.0001724,103090.0,103080.0,5.20663767]
[1734296447011,0.0001724,103090.0,103080.0,5.03292703]
[1734296447236,0.0001724,103090.0,103080.0,5.20660199]
[1734296447670,0.0001724,103090.0,103080.0,5.25660199]
[1734296448652,0.1294724,103110.0,103100.0,0.193986]
[1734296448850,0.12952701,103110.0,103100.0,5.35835451]
[1734296449054,0.12952701,103110.0,103100.0,5.44502579]
[1734296449230,0.12952701,103110.0,103100.0,0.48883479]
[1734296449431,0.12952701,103110.0,103100.0,5.31270579]
[1734296451168,0.12952701,103110.0,103100.0,5.20800779]
[1734296451373,0.12952701,103110.0,103100.0,5.2661853]
[1734296452243,0.0001724,103120.0,103100.0,5.41523933]
[1734296452453,0.0001724,103120.0,103110.0,5.51659868]
[1734296452660,0.0001724,103120.0,103110.0,5.68088194]
[1734296453285,0.0001724,103120.0,103110.0,5.59406082]
[1734296455234,0.0001724,103120.0,103110.0,5.38946582]
[1734296456712,0.0001724,103120.0,103110.0,5.40842356]
[1734296459497,0.0001724,103120.0,103110.0,0.65682756]
[1734296459948,0.1301724,103120.0,103110.0,5.61301856]
[1734296460798,0.1301724,103120.0,103110.0,2.30116725]
[1734296461012,0.1301724,103120.0,103110.0,1.95909876]
[1734296462096,0.1301724,103120.0,103110.0,1.90092125]
[1734296462301,0.1301724,103120.0,103110.0,1.95909876]
[1734296462440,0.1301724,103120.0,103110.0,1.90092125]
[1734296462651,0.1301724,103120.0,103110.0,0.64883025]
[1734296464099,0.1301724,103120.0,103110.0,0.59065274]
[1734296464302,0.1301724,103120.0,103110.0,0.45486325]
[1734296464499,0.1301724,103120.0,103110.0,0.64883025]
[1734296465714,0.1301724,103120.0,103110.0,0.67204818]
[1734296468362,0.1301724,103120.0,103110.0,0.61387067]
[1734296468563,0.1301724,103120.0,103110.0,0.67204818]
[1734296473190,0.1301724,103120.0,103110.0,0.44432018]
[1734296473329,0.1301724,103120.0,103110.0,3.54267318]
[1734296474171,0.1301724,103120.0,103110.0,3.54275938]
[1734296474996,0.1301724,103120.0,103110.0,1.79443338]
[1734296475533,0.1301724,103120.0,103110.0,1.69071738]
[1734296479350,0.1301724,103120.0,103110.0,1.77742125]
[1734296479552,0.1301724,103120.0,103110.0,1.69071738]
[1734296480238,0.1301724,103120.0,103110.0,1.77742125]
[1734296481302,0.1301724,103120.0,103110.0,2.22853747]
[1734296483987,0.1301724,103120.0,103110.0,2.26022282]
[1734296484189,0.2301724,103120.0,103110.0,1.18731957]
[1734296484398,0.2301724,103120.0,103110.0,4.18975357]
[1734296484594,0.2301724,103120.0,103110.0,4.17424757]
[1734296487203,0.2301724,103120.0,103110.0,4.39100726]
[1734296488340,0.2301724,103120.0,103110.0,4.29602626]
[1734296488754,0.2301724,103120.0,103110.0,3.43637226]
[1734296488989,0.2301724,103120.0,103110.0,3.4394303]
[1734296490240,0.2301724,103120.0,103110.0,3.17288379]
[1734296490418,0.2301724,103120.0,103110.0,3.14397776]
[1734296491051,0.2301724,103120.0,103110.0,3.23107103]
[1734296491258,0.2301724,103120.0,103110.0,3.14397776]
[1734296492856,0.2301724,103120.0,103110.0,1.23865832]
[1734296493034,0.2301724,103120.0,103110.0,0.88240262]
[1734296493432,0.2301724,103120.0,103110.0,1.07636962]
[1734296493619,0.2301724,103120.0,103110.0,0.58074178]
[1734296493823,0.2301724,103120.0,103110.0,0.45011646]
[1734296494023,0.2301724,103120.0,103110.0,0.50829397]
[1734296494253,0.2301724,103120.0,103110.0,0.63891929]
[1734296494818,0.2301724,103120.0,103110.0,0.50829397]
[1734296497198,0.2301724,103120.0,103110.0,0.96239799]
[1734296497352,0.2301724,103120.0,103110.0,1.13656508]
[1734296497558,0.2301724,103120.0,103110.0,1.35427395]
[1734296498840,0.2301724,103120.0,103110.0,3.63477195]
[1734296499102,0.2301724,103120.0,103110.0,3.65590168]
[1734296499273,0.2301724,103120.0,103110.0,3.56879616]
[1734296499820,0.2301724,103120.0,103110.0,3.56895829]
[1734296501084,0.2301724,103120.0,103110.0,3.6560766]
[1734296501261,0.2301724,103120.0,103110.0,3.56895829]
[1734296505368,0.2301724,103120.0,103110.0,3.43829049]
[1734296505570,0.2301724,103120.0,103110.0,3.56903799]
[1734296505972,0.2301724,103120.0,103110.0,3.43829049]
[1734296508947,0.2301724,103120.0,103110.0,3.43877389]
[1734296511788,0.2301724,103120.0,103110.0,3.38059638]
[1734296511993,0.2301724,103120.0,103110.0,3.43877389]
[1734296513352,0.2301724,103120.0,103110.0,3.38066816]
[1734296513757,0.2301724,103120.0,103110.0,3.43884567]
[1734296513958,0.2301724,103120.0,103110.0,3.41771594]
[1734296516008,0.2301724,103120.0,103110.0,3.96235194]
[1734296517029,0.2301724,103120.0,103110.0,3.53978194]
[1734296519638,0.1301724,103120.0,103110.0,3.53978194]
[1734296520678,0.1301724,103120.0,103110.0,3.52524494]
[1734296521101,0.1301724,103120.0,103110.0,3.52534085]
[1734296521979,0.1301724,103120.0,103110.0,3.5253341]
[1734296522183,0.1301724,103120.0,103110.0,3.52533938]
[1734296523068,0.1301724,103120.0,103110.0,2.83722338]
[1734296523287,0.1301724,103120.0,103110.0,1.20801741]
[1734296523487,0.1301724,103120.0,103110.0,1.56854692]
[1734296523698,0.1301724,103120.0,103110.0,1.6031899]
[1734296524350,0.1301724,103120.0,103110.0,1.69038469]
[1734296524557,0.1301724,103120.0,103110.0,1.38803269]
[1734296525190,0.1301724,103120.0,103110.0,1.75047369]
[1734296525406,0.1301724,103120.0,103110.0,1.75046218]
[1734296526058,0.1301724,103120.0,103110.0,1.38802118]